[Event "Titled Tuesday Blitz April 11 Early 2023"]
[White "Barwinska, Ewa"]
[Black "Alice, Mateus Felizardo Viageiro"]
[WhiteFideId "21833761"]
[BlackFideId "14800047"]
[WhiteElo "1908"]
[BlackElo "2189"]
[Result "1-0"]
[Round "11"]
[TimeControl "180+2"]
[Date "2023.04.11"]
[WhiteClock "0:00:07"]
[BlackClock "0:00:48"]

1. e4 {[%clk 0:03:00]}  c5 {[%clk 0:02:58]} 2. Nf3 {[%clk 0:03:01]}  d6 {[%clk 0:02:57]} 3. d4 {[%clk 0:03:00]}  cxd4 {[%clk 0:02:57]} 4. Nxd4 {[%clk 0:03:01]}  Nf6 {[%clk 0:02:57]} 5. Nc3 {[%clk 0:03:01]}  a6 {[%clk 0:02:58]} 6. Bg5 {[%clk 0:03:02]}  e6 {[%clk 0:02:58]} 7. f4 {[%clk 0:03:02]}  Be7 {[%clk 0:02:58]} 8. Qf3 {[%clk 0:03:02]}  Nbd7 {[%clk 0:02:58]} 9. O-O-O {[%clk 0:02:59]}  Qc7 {[%clk 0:02:58]} 10. g4 {[%clk 0:02:59]}  b5 {[%clk 0:02:58]} 11. Bxf6 {[%clk 0:02:57]}  Nxf6 {[%clk 0:02:58]} 12. g5 {[%clk 0:02:54]}  Nd7 {[%clk 0:02:59]} 13. f5 {[%clk 0:02:43]}  Bxg5+ {[%clk 0:02:58]} 14. Kb1 {[%clk 0:02:44]}  Ne5 {[%clk 0:02:59]} 15. Qh5 {[%clk 0:02:43]}  Bf6 {[%clk 0:02:58]} 16. Nxe6 {[%clk 0:02:35]}  Bxe6 {[%clk 0:02:57]} 17. fxe6 {[%clk 0:02:36]}  g6 {[%clk 0:02:51]} 18. exf7+ {[%clk 0:02:35]}  Kxf7 {[%clk 0:02:51]} 19. Qh3 {[%clk 0:02:29]}  Kg7 {[%clk 0:02:49]} 20. Nd5 {[%clk 0:02:26]}  Qd8 {[%clk 0:02:48]} 21. Be2 {[%clk 0:02:19]}  Rf8 {[%clk 0:02:47]} 22. Qa3 {[%clk 0:02:04]}  Bg5 {[%clk 0:02:42]} 23. h4 {[%clk 0:01:49]}  Bxh4 {[%clk 0:02:41]} 24. Qh3 {[%clk 0:01:47]}  g5 {[%clk 0:02:39]} 25. Rdg1 {[%clk 0:01:42]}  Ng6 {[%clk 0:02:37]} 26. Qc3+ {[%clk 0:01:39]}  Kh6 {[%clk 0:02:33]} 27. Ne3 {[%clk 0:01:24]}  Rf4 {[%clk 0:02:28]} 28. Nf5+ {[%clk 0:01:18]}  Rxf5 {[%clk 0:02:28]} 29. exf5 {[%clk 0:01:19]}  Nf4 {[%clk 0:02:27]} 30. Bf3 {[%clk 0:01:15]}  Rc8 {[%clk 0:02:26]} 31. Qd4 {[%clk 0:01:12]}  Rc4 {[%clk 0:02:25]} 32. Qd2 {[%clk 0:00:58]}  Qf6 {[%clk 0:02:21]} 33. Rg4 {[%clk 0:00:40]}  Qxf5 {[%clk 0:02:01]} 34. Qxd6+ {[%clk 0:00:37]}  Ng6 {[%clk 0:02:01]} 35. Rxc4 {[%clk 0:00:32]}  Qxf3 {[%clk 0:01:59]} 36. Rcxh4+ {[%clk 0:00:31]}  gxh4 {[%clk 0:01:58]} 37. Rxh4+ {[%clk 0:00:30]}  Kg5 {[%clk 0:01:57]} 38. Qd8+ {[%clk 0:00:28]}  Kf5 {[%clk 0:01:49]} 39. Qd7+ {[%clk 0:00:26]}  Kg5 {[%clk 0:01:48]} 40. Qd8+ {[%clk 0:00:25]}  Kf5 {[%clk 0:01:48]} 41. Rd4 {[%clk 0:00:23]}  Nf4 {[%clk 0:01:44]} 42. Qd7+ {[%clk 0:00:21]}  Kg5 {[%clk 0:01:42]} 43. Qg7+ {[%clk 0:00:20]}  Kf5 {[%clk 0:01:42]} 44. Qf7+ {[%clk 0:00:19]}  Ke5 {[%clk 0:01:41]} 45. Qg7+ {[%clk 0:00:20]}  Kf5 {[%clk 0:01:40]} 46. Qd7+ {[%clk 0:00:20]}  Ke5 {[%clk 0:01:40]} 47. Rd1 {[%clk 0:00:20]}  Nd5 {[%clk 0:01:39]} 48. Qg7+ {[%clk 0:00:17]}  Kd6 {[%clk 0:01:38]} 49. Qh6+ {[%clk 0:00:16]}  Kc5 {[%clk 0:01:37]} 50. Qd2 {[%clk 0:00:15]}  b4 {[%clk 0:01:36]} 51. Qd4+ {[%clk 0:00:15]}  Kc6 {[%clk 0:01:35]} 52. Qc4+ {[%clk 0:00:13]}  Kd6 {[%clk 0:01:34]} 53. Qxa6+ {[%clk 0:00:13]}  Ke5 {[%clk 0:01:34]} 54. Qf1 {[%clk 0:00:13]}  Qe4 {[%clk 0:01:31]} 55. Re1 {[%clk 0:00:10]}  Ne3 {[%clk 0:01:31]} 56. Qe2 {[%clk 0:00:02]}  Kf4 {[%clk 0:01:30]} 57. Rf1+ {[%clk 0:00:01]}  Ke5 {[%clk 0:01:29]} 58. Re1 {[%clk 0:00:01]}  Kf4 {[%clk 0:01:28]} 59. Kc1 {[%clk 0:00:01]}  b3 {[%clk 0:01:25]} 60. Rf1+ {[%clk 0:00:02]}  Ke5 {[%clk 0:01:25]} 61. Re1 {[%clk 0:00:02]}  bxa2 {[%clk 0:01:24]} 62. Kd2 {[%clk 0:00:01]}  Nc4+ {[%clk 0:01:20]} 63. Kc3 {[%clk 0:00:01]}  Qxe2 {[%clk 0:01:19]} 64. Rxe2+ {[%clk 0:00:02]}  Kd5 {[%clk 0:01:18]} 65. Re1 {[%clk 0:00:02]}  Ne3 {[%clk 0:01:17]} 66. b3 {[%clk 0:00:02]}  Kc5 {[%clk 0:01:14]} 67. Ra1 {[%clk 0:00:03]}  Nd5+ {[%clk 0:01:15]} 68. Kb2 {[%clk 0:00:03]}  Nb4 {[%clk 0:01:16]} 69. c3 {[%clk 0:00:03]}  Nd3+ {[%clk 0:01:16]} 70. Kc2 {[%clk 0:00:03]}  Nf2 {[%clk 0:01:14]} 71. Rxa2 {[%clk 0:00:03]}  h5 {[%clk 0:00:52]} 72. Ra5+ {[%clk 0:00:04]}  Kb6 {[%clk 0:00:51]} 73. Rxh5 {[%clk 0:00:05]}  Ne4 {[%clk 0:00:51]} 74. Rh6+ {[%clk 0:00:05]}  Kc7 {[%clk 0:00:50]} 75. c4 {[%clk 0:00:06]}  Nc5 {[%clk 0:00:50]} 76. Rh7+ {[%clk 0:00:07]}  Kc6 {[%clk 0:00:49]} 77. b4 {[%clk 0:00:07]}  Ne4 {[%clk 0:00:49]} 78. Rh6+ {[%clk 0:00:07]}  Kc7 {[%clk 0:00:48]} 79. Kd3 {[%clk 0:00:08]}  Nd6 {[%clk 0:00:48]} 80. Rh7+ {[%clk 0:00:06]}  Kc6 {[%clk 0:00:48]} 81. Rh6 {[%clk 0:00:06]}  Kc7 {[%clk 0:00:47]} 82. b5 {[%clk 0:00:06]}  Nb7 {[%clk 0:00:47]} 83. Kd4 {[%clk 0:00:06]}  Nd6 {[%clk 0:00:46]} 84. b6+ {[%clk 0:00:05]}  Kd7 {[%clk 0:00:47]} 85. Rxd6+ {[%clk 0:00:04]}  Kxd6 {[%clk 0:00:46]} 86. c5+ {[%clk 0:00:04]}  Kc6 {[%clk 0:00:47]} 87. Kc4 {[%clk 0:00:05]}  Kb7 {[%clk 0:00:47]} 88. Kd5 {[%clk 0:00:05]}  Kb8 {[%clk 0:00:47]} 89. Kc6 {[%clk 0:00:05]}  Kc8 {[%clk 0:00:47]} 90. Kd6 {[%clk 0:00:06]}  Kb8 {[%clk 0:00:48]} 91. Kd7 {[%clk 0:00:06]}  Kb7 {[%clk 0:00:48]} 92. c6+ {[%clk 0:00:07]} 1-0


[Site "https://www.chess.com"]

[Event "Titled Tuesday Blitz April 11 Early 2023"]
[White "Qashashvili, Alexandre"]
[Black "Jaivardhan Raj"]
[WhiteFideId "13600842"]
[BlackFideId "25744437"]
[WhiteElo "2405"]
[BlackElo "1772"]
[Result "1/2-1/2"]
[Round "11"]
[TimeControl "180+2"]
[Date "2023.04.11"]
[WhiteClock "0:01:01"]
[BlackClock "0:00:48"]

1. e4 {[%clk 0:02:57]}  c5 {[%clk 0:02:59]} 2. Nc3 {[%clk 0:02:56]}  Nc6 {[%clk 0:02:58]} 3. Nf3 {[%clk 0:02:56]}  e6 {[%clk 0:02:56]} 4. Bc4 {[%clk 0:02:56]}  a6 {[%clk 0:02:55]} 5. a3 {[%clk 0:02:56]}  b5 {[%clk 0:02:55]} 6. Ba2 {[%clk 0:02:54]}  Bb7 {[%clk 0:02:52]} 7. d3 {[%clk 0:02:54]}  Qc7 {[%clk 0:02:51]} 8. O-O {[%clk 0:02:54]}  Nf6 {[%clk 0:02:49]} 9. g3 {[%clk 0:02:54]}  Be7 {[%clk 0:02:48]} 10. Bf4 {[%clk 0:02:53]}  d6 {[%clk 0:02:48]} 11. Re1 {[%clk 0:02:51]}  e5 {[%clk 0:02:48]} 12. Be3 {[%clk 0:02:50]}  O-O {[%clk 0:02:47]} 13. Nd5 {[%clk 0:02:49]}  Nxd5 {[%clk 0:02:46]} 14. Bxd5 {[%clk 0:02:50]}  Nd4 {[%clk 0:02:44]} 15. Bxb7 {[%clk 0:02:49]}  Qxb7 {[%clk 0:02:39]} 16. c3 {[%clk 0:02:47]}  Nxf3+ {[%clk 0:02:36]} 17. Qxf3 {[%clk 0:02:48]}  f5 {[%clk 0:02:36]} 18. Kg2 {[%clk 0:02:45]}  fxe4 {[%clk 0:02:34]} 19. Qxe4 {[%clk 0:02:44]}  d5 {[%clk 0:02:29]} 20. Qxe5 {[%clk 0:02:43]}  d4+ {[%clk 0:02:29]} 21. Kg1 {[%clk 0:02:37]}  dxe3 {[%clk 0:02:26]} 22. Rxe3 {[%clk 0:02:37]}  Bf6 {[%clk 0:02:23]} 23. Qxc5 {[%clk 0:02:33]}  Rac8 {[%clk 0:02:14]} 24. Qh5 {[%clk 0:02:26]}  Qb6 {[%clk 0:02:09]} 25. d4 {[%clk 0:02:23]}  a5 {[%clk 0:02:00]} 26. Rae1 {[%clk 0:02:16]}  b4 {[%clk 0:02:00]} 27. axb4 {[%clk 0:02:14]}  axb4 {[%clk 0:01:59]} 28. Qd5+ {[%clk 0:02:05]}  Kh8 {[%clk 0:01:58]} 29. Qd7 {[%clk 0:01:59]}  Rcd8 {[%clk 0:01:45]} 30. Re8 {[%clk 0:01:45]}  Kg8 {[%clk 0:01:24]} 31. Rxd8 {[%clk 0:01:17]}  Qxd8 {[%clk 0:01:19]} 32. Qe6+ {[%clk 0:01:11]}  Kh8 {[%clk 0:01:18]} 33. Qc4 {[%clk 0:01:06]}  bxc3 {[%clk 0:01:15]} 34. bxc3 {[%clk 0:01:07]}  h6 {[%clk 0:01:09]} 35. Qd3 {[%clk 0:01:01]}  Bg5 {[%clk 0:00:48]} 1/2-1/2


[Site "https://www.chess.com"]

[Event "Titled Tuesday Blitz April 11 Early 2023"]
[White "Rian, Kapriaga"]
[Black "Tarnowska, Aleksandra"]
[WhiteFideId "7103263"]
[BlackFideId "1180967"]
[WhiteElo "2300"]
[BlackElo "1776"]
[Result "1-0"]
[Round "11"]
[TimeControl "180+2"]
[Date "2023.04.11"]
[WhiteClock "0:00:09"]
[BlackClock "0:00:08"]

1. d4 {[%clk 0:03:00]}  d5 {[%clk 0:02:59]} 2. Bf4 {[%clk 0:02:59]}  Nf6 {[%clk 0:02:55]} 3. e3 {[%clk 0:02:59]}  e6 {[%clk 0:02:51]} 4. c4 {[%clk 0:02:58]}  c5 {[%clk 0:02:46]} 5. Nc3 {[%clk 0:02:54]}  cxd4 {[%clk 0:02:40]} 6. exd4 {[%clk 0:02:48]}  Bd6 {[%clk 0:02:35]} 7. Bg5 {[%clk 0:02:43]}  dxc4 {[%clk 0:02:32]} 8. Bxc4 {[%clk 0:02:43]}  Nc6 {[%clk 0:02:18]} 9. Nf3 {[%clk 0:02:36]}  h6 {[%clk 0:02:16]} 10. Bh4 {[%clk 0:02:36]}  a6 {[%clk 0:02:04]} 11. O-O {[%clk 0:02:35]}  O-O {[%clk 0:02:01]} 12. d5 {[%clk 0:02:33]}  Na5 {[%clk 0:01:51]} 13. Be2 {[%clk 0:02:18]}  exd5 {[%clk 0:01:14]} 14. Nxd5 {[%clk 0:02:06]}  Bxh2+ {[%clk 0:01:12]} 15. Kxh2 {[%clk 0:01:59]}  Qxd5 {[%clk 0:01:12]} 16. Bxf6 {[%clk 0:01:42]}  Qxd1 {[%clk 0:01:06]} 17. Rfxd1 {[%clk 0:01:39]}  gxf6 {[%clk 0:01:06]} 18. Rd6 {[%clk 0:01:35]}  Kg7 {[%clk 0:01:03]} 19. Nd4 {[%clk 0:01:25]}  Re8 {[%clk 0:00:48]} 20. Rc1 {[%clk 0:01:03]}  Re5 {[%clk 0:00:34]} 21. Bf3 {[%clk 0:00:51]}  Be6 {[%clk 0:00:20]} 22. b4 {[%clk 0:00:46]}  Nc4 {[%clk 0:00:19]} 23. Nxe6+ {[%clk 0:00:43]}  Rxe6 {[%clk 0:00:05]} 24. Rxe6 {[%clk 0:00:40]}  fxe6 {[%clk 0:00:05]} 25. Rxc4 {[%clk 0:00:39]}  Rb8 {[%clk 0:00:02]} 26. Rc7+ {[%clk 0:00:37]}  Kg6 {[%clk 0:00:02]} 27. Rxb7 {[%clk 0:00:36]}  Rd8 {[%clk 0:00:03]} 28. Rb6 {[%clk 0:00:33]}  Rd2 {[%clk 0:00:03]} 29. Rxa6 {[%clk 0:00:30]}  Rxf2 {[%clk 0:00:03]} 30. a4 {[%clk 0:00:27]}  e5 {[%clk 0:00:03]} 31. b5 {[%clk 0:00:24]}  Kg5 {[%clk 0:00:03]} 32. b6 {[%clk 0:00:20]}  f5 {[%clk 0:00:03]} 33. b7 {[%clk 0:00:18]}  Rb2 {[%clk 0:00:02]} 34. Ra8 {[%clk 0:00:17]}  e4 {[%clk 0:00:03]} 35. b8=Q {[%clk 0:00:16]}  Rxb8 {[%clk 0:00:03]} 36. Rxb8 {[%clk 0:00:15]}  exf3 {[%clk 0:00:04]} 37. gxf3 {[%clk 0:00:15]}  Kf4 {[%clk 0:00:04]} 38. Kg2 {[%clk 0:00:15]}  h5 {[%clk 0:00:04]} 39. Kf2 {[%clk 0:00:15]}  h4 {[%clk 0:00:05]} 40. a5 {[%clk 0:00:15]}  h3 {[%clk 0:00:03]} 41. a6 {[%clk 0:00:15]}  Kg5 {[%clk 0:00:03]} 42. a7 {[%clk 0:00:14]}  h2 {[%clk 0:00:02]} 43. Kg2 {[%clk 0:00:14]}  Kf4 {[%clk 0:00:03]} 44. Kxh2 {[%clk 0:00:13]}  Ke3 {[%clk 0:00:03]} 45. Rf8 {[%clk 0:00:12]}  Kf2 {[%clk 0:00:03]} 46. Rxf5 {[%clk 0:00:11]}  Kf1 {[%clk 0:00:03]} 47. a8=Q {[%clk 0:00:10]}  Kf2 {[%clk 0:00:04]} 48. Qa2+ {[%clk 0:00:10]}  Kf1 {[%clk 0:00:04]} 49. Qb1+ {[%clk 0:00:09]}  Kf2 {[%clk 0:00:05]} 50. Qc2+ {[%clk 0:00:09]}  Kf1 {[%clk 0:00:05]} 51. Qg2+ {[%clk 0:00:08]}  Ke1 {[%clk 0:00:06]} 52. Re5+ {[%clk 0:00:09]}  Kd1 {[%clk 0:00:07]} 53. Qe2+ {[%clk 0:00:08]}  Kc1 {[%clk 0:00:07]} 54. Rc5+ {[%clk 0:00:08]}  Kb1 {[%clk 0:00:07]} 55. Qc2+ {[%clk 0:00:08]}  Ka1 {[%clk 0:00:08]} 56. Ra5# {[%clk 0:00:09]} 1-0


[Site "https://www.chess.com"]

[Event "Titled Tuesday Blitz April 11 Early 2023"]
[White "Ciuffoletti, Paolo"]
[Black "Grave, Jacob Templen"]
[WhiteFideId "807630"]
[BlackFideId "1542656"]
[WhiteElo "2143"]
[BlackElo "2189"]
[Result "1-0"]
[Round "11"]
[TimeControl "180+2"]
[Date "2023.04.11"]
[WhiteClock "0:00:22"]
[BlackClock "0:00:01"]

1. e4 {[%clk 0:03:00]}  e5 {[%clk 0:02:54]} 2. Nf3 {[%clk 0:03:00]}  Nc6 {[%clk 0:02:54]} 3. Bc4 {[%clk 0:03:00]}  Nf6 {[%clk 0:02:52]} 4. d4 {[%clk 0:02:59]}  exd4 {[%clk 0:02:29]} 5. Ng5 {[%clk 0:02:57]}  d5 {[%clk 0:02:21]} 6. exd5 {[%clk 0:02:55]}  Na5 {[%clk 0:02:11]} 7. Qe2+ {[%clk 0:02:53]}  Qe7 {[%clk 0:01:51]} 8. O-O {[%clk 0:02:51]}  Qxe2 {[%clk 0:01:48]} 9. Bxe2 {[%clk 0:02:49]}  Nxd5 {[%clk 0:01:44]} 10. Bd2 {[%clk 0:02:42]}  Nc6 {[%clk 0:01:30]} 11. Re1 {[%clk 0:02:40]}  Be7 {[%clk 0:01:27]} 12. Bc4 {[%clk 0:02:37]}  Be6 {[%clk 0:01:09]} 13. Nxe6 {[%clk 0:02:34]}  fxe6 {[%clk 0:01:10]} 14. Rxe6 {[%clk 0:02:34]}  Nb6 {[%clk 0:01:10]} 15. Bb3 {[%clk 0:02:12]}  O-O-O {[%clk 0:01:07]} 16. Na3 {[%clk 0:02:06]}  Bxa3 {[%clk 0:01:03]} 17. bxa3 {[%clk 0:02:05]}  d3 {[%clk 0:01:02]} 18. cxd3 {[%clk 0:01:50]}  Rxd3 {[%clk 0:00:56]} 19. Be3 {[%clk 0:01:34]}  Nd4 {[%clk 0:00:53]} 20. Bxd4 {[%clk 0:01:27]}  Rxd4 {[%clk 0:00:53]} 21. Rae1 {[%clk 0:01:27]}  a5 {[%clk 0:00:40]} 22. Re7 {[%clk 0:01:23]}  a4 {[%clk 0:00:31]} 23. Be6+ {[%clk 0:01:19]}  Kb8 {[%clk 0:00:31]} 24. Rxg7 {[%clk 0:01:13]}  Re8 {[%clk 0:00:31]} 25. Rg8 {[%clk 0:01:13]}  Rdd8 {[%clk 0:00:23]} 26. Rxe8 {[%clk 0:01:07]}  Rxe8 {[%clk 0:00:24]} 27. f4 {[%clk 0:01:07]}  Nd5 {[%clk 0:00:19]} 28. f5 {[%clk 0:01:04]}  Nf4 {[%clk 0:00:16]} 29. g3 {[%clk 0:00:50]}  Nxe6 {[%clk 0:00:15]} 30. fxe6 {[%clk 0:00:50]}  c6 {[%clk 0:00:14]} 31. Kf2 {[%clk 0:00:49]}  Kc7 {[%clk 0:00:14]} 32. Re4 {[%clk 0:00:47]}  b5 {[%clk 0:00:14]} 33. Rh4 {[%clk 0:00:46]}  Re7 {[%clk 0:00:15]} 34. Rh6 {[%clk 0:00:45]}  Kd6 {[%clk 0:00:14]} 35. Kf3 {[%clk 0:00:45]}  Kd5 {[%clk 0:00:11]} 36. g4 {[%clk 0:00:44]}  c5 {[%clk 0:00:11]} 37. h4 {[%clk 0:00:38]}  b4 {[%clk 0:00:11]} 38. Rh5+ {[%clk 0:00:37]}  Kd4 {[%clk 0:00:10]} 39. axb4 {[%clk 0:00:36]}  cxb4 {[%clk 0:00:11]} 40. Ra5 {[%clk 0:00:35]}  a3 {[%clk 0:00:11]} 41. Rb5 {[%clk 0:00:34]}  Kc3 {[%clk 0:00:09]} 42. Rb6 {[%clk 0:00:35]}  Kc4 {[%clk 0:00:06]} 43. Kf4 {[%clk 0:00:32]}  Kc5 {[%clk 0:00:06]} 44. Ra6 {[%clk 0:00:32]}  Kb5 {[%clk 0:00:04]} 45. Rd6 {[%clk 0:00:31]}  b3 {[%clk 0:00:04]} 46. Rd3 {[%clk 0:00:22]}  b2 {[%clk 0:00:02]} 47. Rb3+ {[%clk 0:00:22]}  Kc4 {[%clk 0:00:01]} 48. Kf5 {[%clk 0:00:22]} 1-0


[Site "https://www.chess.com"]

[Event "Titled Tuesday Blitz April 11 Early 2023"]
[White "Kiseleva, Arina"]
[Black "Lohani, Sujana"]
[WhiteFideId "4164989"]
[BlackFideId "12311987"]
[WhiteElo "1708"]
[BlackElo "1718"]
[Result "0-1"]
[Round "11"]
[TimeControl "180+2"]
[Date "2023.04.11"]
[WhiteClock "0:00:03"]
[BlackClock "0:00:05"]

1. d4 {[%clk 0:03:00]}  b6 {[%clk 0:02:49]} 2. Nf3 {[%clk 0:03:01]}  Bb7 {[%clk 0:02:49]} 3. c4 {[%clk 0:03:00]}  g6 {[%clk 0:02:50]} 4. Bf4 {[%clk 0:02:59]}  Bg7 {[%clk 0:02:51]} 5. Nc3 {[%clk 0:02:58]}  d6 {[%clk 0:02:51]} 6. e3 {[%clk 0:02:57]}  e6 {[%clk 0:02:51]} 7. h4 {[%clk 0:02:56]}  h5 {[%clk 0:02:50]} 8. Be2 {[%clk 0:02:56]}  Nd7 {[%clk 0:02:49]} 9. Qc2 {[%clk 0:02:55]}  Ngf6 {[%clk 0:02:48]} 10. O-O-O {[%clk 0:02:41]}  Qe7 {[%clk 0:02:46]} 11. Nb5 {[%clk 0:02:37]}  Nf8 {[%clk 0:02:36]} 12. Rhg1 {[%clk 0:02:22]}  a6 {[%clk 0:02:35]} 13. Nc3 {[%clk 0:02:20]}  O-O-O {[%clk 0:02:34]} 14. d5 {[%clk 0:02:05]}  exd5 {[%clk 0:02:29]} 15. Nxd5 {[%clk 0:02:04]}  Nxd5 {[%clk 0:02:28]} 16. cxd5 {[%clk 0:02:04]}  Nd7 {[%clk 0:02:23]} 17. Qa4 {[%clk 0:01:58]}  Nc5 {[%clk 0:02:21]} 18. Qc2 {[%clk 0:01:56]}  Rhe8 {[%clk 0:02:14]} 19. Bg5 {[%clk 0:01:30]}  f6 {[%clk 0:02:13]} 20. Bf4 {[%clk 0:01:30]}  Ne4 {[%clk 0:02:12]} 21. Bd3 {[%clk 0:01:29]}  Bxd5 {[%clk 0:02:08]} 22. Bxa6+ {[%clk 0:01:27]}  Bb7 {[%clk 0:02:08]} 23. Bxb7+ {[%clk 0:01:27]}  Kxb7 {[%clk 0:02:08]} 24. Nd4 {[%clk 0:01:23]}  Qd7 {[%clk 0:01:55]} 25. f3 {[%clk 0:01:21]}  Nc5 {[%clk 0:01:54]} 26. Qxg6 {[%clk 0:01:21]}  f5 {[%clk 0:01:32]} 27. Qxf5 {[%clk 0:01:14]}  Qa4 {[%clk 0:01:29]} 28. Kb1 {[%clk 0:01:06]}  Ra8 {[%clk 0:01:23]} 29. Qd5+ {[%clk 0:01:05]}  Kb8 {[%clk 0:01:05]} 30. Nc6+ {[%clk 0:00:55]}  Kc8 {[%clk 0:00:57]} 31. Nd4 {[%clk 0:00:19]}  Kb8 {[%clk 0:00:27]} 32. a3 {[%clk 0:00:15]}  Kc8 {[%clk 0:00:15]} 33. Qc6 {[%clk 0:00:12]}  Bxd4 {[%clk 0:00:14]} 34. Qxa4 {[%clk 0:00:12]}  Nxa4 {[%clk 0:00:09]} 35. Rxd4 {[%clk 0:00:10]}  Nc5 {[%clk 0:00:09]} 36. Rgd1 {[%clk 0:00:08]}  Nb3 {[%clk 0:00:08]} 37. Rd5 {[%clk 0:00:07]}  Nc5 {[%clk 0:00:08]} 38. Rxh5 {[%clk 0:00:07]}  Rg8 {[%clk 0:00:08]} 39. g4 {[%clk 0:00:07]}  Kb7 {[%clk 0:00:08]} 40. Rh7 {[%clk 0:00:07]}  Kc6 {[%clk 0:00:08]} 41. Rc1 {[%clk 0:00:06]}  Kb5 {[%clk 0:00:07]} 42. b4 {[%clk 0:00:06]}  Nd3 {[%clk 0:00:05]} 43. Rc3 {[%clk 0:00:05]}  Nxf4 {[%clk 0:00:04]} 44. exf4 {[%clk 0:00:06]}  Rgf8 {[%clk 0:00:04]} 45. Rh5+ {[%clk 0:00:06]}  c5 {[%clk 0:00:04]} 46. bxc5 {[%clk 0:00:05]}  dxc5 {[%clk 0:00:05]} 47. Rb3+ {[%clk 0:00:05]}  Kc4 {[%clk 0:00:04]} 48. Rxb6 {[%clk 0:00:05]}  Rxf4 {[%clk 0:00:04]} 49. Rf5 {[%clk 0:00:04]}  Rd4 {[%clk 0:00:03]} 50. Kc2 {[%clk 0:00:03]}  Rxa3 {[%clk 0:00:03]} 51. h5 {[%clk 0:00:03]}  Ra2+ {[%clk 0:00:03]} 52. Rb2 {[%clk 0:00:03]}  Ra3 {[%clk 0:00:03]} 53. h6 {[%clk 0:00:03]}  Rc3+ {[%clk 0:00:03]} 54. Kb1 {[%clk 0:00:03]}  Rd1+ {[%clk 0:00:03]} 55. Ka2 {[%clk 0:00:02]}  Rcc1 {[%clk 0:00:04]} 56. Ka3 {[%clk 0:00:02]}  Ra1+ {[%clk 0:00:04]} 57. Ra2 {[%clk 0:00:02]}  Rd3+ {[%clk 0:00:04]} 58. Ka4 {[%clk 0:00:03]}  Rxa2# {[%clk 0:00:05]} 0-1


[Site "https://www.chess.com"]

[Event "Titled Tuesday Blitz April 11 Early 2023"]
[White "Vargas, Mauricio"]
[Black "Kornyukov, Alexey"]
[WhiteFideId "4404572"]
[BlackFideId "4150457"]
[WhiteElo "1998"]
[BlackElo "2352"]
[Result "0-1"]
[Round "11"]
[TimeControl "180+2"]
[Date "2023.04.11"]
[WhiteClock "0:00:16"]
[BlackClock "0:00:18"]

1. e4 {[%clk 0:02:59]}  c5 {[%clk 0:02:57]} 2. Nc3 {[%clk 0:02:55]}  Nc6 {[%clk 0:02:56]} 3. f4 {[%clk 0:02:55]}  e6 {[%clk 0:02:54]} 4. Nf3 {[%clk 0:02:54]}  d5 {[%clk 0:02:52]} 5. Bb5 {[%clk 0:02:51]}  d4 {[%clk 0:02:52]} 6. Bxc6+ {[%clk 0:02:45]}  bxc6 {[%clk 0:02:50]} 7. Ne2 {[%clk 0:02:41]}  Be7 {[%clk 0:02:48]} 8. d3 {[%clk 0:02:41]}  Nf6 {[%clk 0:02:48]} 9. O-O {[%clk 0:02:37]}  O-O {[%clk 0:02:47]} 10. Qe1 {[%clk 0:02:36]}  Nd7 {[%clk 0:02:46]} 11. e5 {[%clk 0:02:33]}  Nb6 {[%clk 0:02:45]} 12. b3 {[%clk 0:02:32]}  Nd5 {[%clk 0:02:43]} 13. Nd2 {[%clk 0:02:25]}  Ne3 {[%clk 0:02:41]} 14. Ne4 {[%clk 0:02:18]}  Nxc2 {[%clk 0:02:37]} 15. Qd1 {[%clk 0:02:10]}  Nxa1 {[%clk 0:02:34]} 16. Ba3 {[%clk 0:02:09]}  Ba6 {[%clk 0:02:31]} 17. Bxc5 {[%clk 0:01:58]}  Bb5 {[%clk 0:02:16]} 18. a4 {[%clk 0:01:56]}  Ba6 {[%clk 0:02:13]} 19. Rf3 {[%clk 0:01:22]}  Bxc5 {[%clk 0:01:54]} 20. Nxc5 {[%clk 0:01:21]}  Qd5 {[%clk 0:01:53]} 21. Nxa6 {[%clk 0:01:07]}  Nxb3 {[%clk 0:01:50]} 22. Nc7 {[%clk 0:01:04]}  Qa5 {[%clk 0:01:10]} 23. Nxa8 {[%clk 0:00:52]}  Nd2 {[%clk 0:01:01]} 24. Rg3 {[%clk 0:00:46]}  Rb8 {[%clk 0:00:46]} 25. Nc7 {[%clk 0:00:28]}  Rb1 {[%clk 0:00:44]} 26. Nc1 {[%clk 0:00:27]}  Nb3 {[%clk 0:00:42]} 27. Kf2 {[%clk 0:00:18]}  Rxc1 {[%clk 0:00:26]} 28. Qxb3 {[%clk 0:00:18]}  Qd2+ {[%clk 0:00:20]} 29. Kf3 {[%clk 0:00:17]}  Rf1+ {[%clk 0:00:20]} 30. Kg4 {[%clk 0:00:16]}  Qxf4+ {[%clk 0:00:19]} 31. Kh3 {[%clk 0:00:16]}  Qh6+ {[%clk 0:00:18]} 32. Kg4 {[%clk 0:00:16]}  Rf4# {[%clk 0:00:18]} 0-1


[Site "https://www.chess.com"]

[Event "Titled Tuesday Blitz April 11 Early 2023"]
[White "Akhmetov, Ayan"]
[Black "Rosh Jain"]
[WhiteFideId "13703706"]
[BlackFideId "25789465"]
[WhiteElo "2398"]
[BlackElo "2233"]
[Result "1-0"]
[Round "11"]
[TimeControl "180+2"]
[Date "2023.04.11"]
[WhiteClock "0:00:22"]
[BlackClock "0:00:01"]

1. Nf3 {[%clk 0:03:00]}  d5 {[%clk 0:02:56]} 2. g3 {[%clk 0:03:00]}  Nf6 {[%clk 0:02:55]} 3. Bg2 {[%clk 0:03:00]}  e6 {[%clk 0:02:50]} 4. c4 {[%clk 0:03:01]}  c5 {[%clk 0:02:49]} 5. O-O {[%clk 0:03:01]}  d4 {[%clk 0:02:49]} 6. e3 {[%clk 0:03:00]}  Nc6 {[%clk 0:02:46]} 7. exd4 {[%clk 0:03:01]}  cxd4 {[%clk 0:02:46]} 8. d3 {[%clk 0:03:01]}  e5 {[%clk 0:02:45]} 9. Re1 {[%clk 0:03:01]}  Bd6 {[%clk 0:02:43]} 10. Na3 {[%clk 0:02:57]}  O-O {[%clk 0:02:41]} 11. Nc2 {[%clk 0:02:57]}  Bf5 {[%clk 0:02:39]} 12. a3 {[%clk 0:02:53]}  Re8 {[%clk 0:02:39]} 13. b4 {[%clk 0:02:50]}  a6 {[%clk 0:02:38]} 14. Bg5 {[%clk 0:02:38]}  h6 {[%clk 0:02:33]} 15. Bxf6 {[%clk 0:02:38]}  Qxf6 {[%clk 0:02:29]} 16. Nd2 {[%clk 0:02:19]}  Bxd3 {[%clk 0:02:20]} 17. Ne4 {[%clk 0:02:17]}  Bxe4 {[%clk 0:02:20]} 18. Bxe4 {[%clk 0:02:18]}  Rab8 {[%clk 0:02:12]} 19. c5 {[%clk 0:02:16]}  Bc7 {[%clk 0:02:11]} 20. a4 {[%clk 0:02:12]}  Ne7 {[%clk 0:02:09]} 21. b5 {[%clk 0:02:08]}  axb5 {[%clk 0:02:07]} 22. axb5 {[%clk 0:02:09]}  b6 {[%clk 0:02:04]} 23. c6 {[%clk 0:02:04]}  Nc8 {[%clk 0:02:01]} 24. Nb4 {[%clk 0:02:02]}  Nd6 {[%clk 0:01:58]} 25. Nd5 {[%clk 0:02:02]}  Qd8 {[%clk 0:01:57]} 26. Qd3 {[%clk 0:01:59]}  f5 {[%clk 0:01:48]} 27. Bxf5 {[%clk 0:01:52]}  e4 {[%clk 0:01:48]} 28. Bxe4 {[%clk 0:01:40]}  Nxe4 {[%clk 0:01:45]} 29. Nxc7 {[%clk 0:01:37]}  Qxc7 {[%clk 0:01:36]} 30. Rxe4 {[%clk 0:01:35]}  Rxe4 {[%clk 0:01:37]} 31. Qxe4 {[%clk 0:01:36]}  Rd8 {[%clk 0:01:37]} 32. Qe6+ {[%clk 0:01:19]}  Kh8 {[%clk 0:01:36]} 33. Rd1 {[%clk 0:01:17]}  d3 {[%clk 0:01:32]} 34. Rd2 {[%clk 0:01:16]}  Qb8 {[%clk 0:01:16]} 35. Qe7 {[%clk 0:01:10]}  Qc8 {[%clk 0:01:14]} 36. Qe4 {[%clk 0:01:01]}  Re8 {[%clk 0:00:37]} 37. Qxd3 {[%clk 0:01:00]}  Qh3 {[%clk 0:00:37]} 38. Re2 {[%clk 0:00:53]}  Ra8 {[%clk 0:00:35]} 39. Re1 {[%clk 0:00:53]}  h5 {[%clk 0:00:33]} 40. c7 {[%clk 0:00:50]}  Rc8 {[%clk 0:00:27]} 41. Qd8+ {[%clk 0:00:43]}  Kh7 {[%clk 0:00:23]} 42. Re8 {[%clk 0:00:41]}  Qg4 {[%clk 0:00:20]} 43. Qd3+ {[%clk 0:00:30]}  Kh6 {[%clk 0:00:18]} 44. Rxc8 {[%clk 0:00:30]}  Qxc8 {[%clk 0:00:18]} 45. Qd2+ {[%clk 0:00:24]}  Kh7 {[%clk 0:00:12]} 46. Qd3+ {[%clk 0:00:24]}  Kh6 {[%clk 0:00:10]} 47. Qd8 {[%clk 0:00:24]}  Qg4 {[%clk 0:00:09]} 48. c8=Q {[%clk 0:00:24]}  Qe4 {[%clk 0:00:01]} 49. Qc6+ {[%clk 0:00:22]} 1-0


[Site "https://www.chess.com"]